[Event "*** Titled Tuesday Blitz"]
[Site "Chess.com"]
[Date "2020.02.04"]
[Round "2"]
[White "ChessLover0108"]
[Black "kingofthenil"]
[Result "1-0"]
[WhiteElo "2726"]
[BlackElo "2479"]
[TimeControl "180+2"]
[EndTime "13:27:30 PST"]
[Termination "ChessLover0108 won by checkmate"]

1. d4 {[%clk 0:02:59.3]} 1... Nf6 {[%clk 0:03:00.9]} 2. c4 {[%clk 0:03:00.2]}
2... c5 {[%clk 0:03:02.4]} 3. d5 {[%clk 0:03:01.1]} 3... e6 {[%clk 0:03:03.9]}
4. Nc3 {[%clk 0:03:01.9]} 4... exd5 {[%clk 0:03:05.4]} 5. cxd5 {[%clk
0:03:03.8]} 5... d6 {[%clk 0:03:07.2]} 6. Nf3 {[%clk 0:03:05.3]} 6... g6 {[%clk
0:03:09.1]} 7. Bf4 {[%clk 0:03:05.6]} 7... a6 {[%clk 0:03:09.9]} 8. a4 {[%clk
0:03:04.7]} 8... Bg7 {[%clk 0:03:10.9]} 9. h3 {[%clk 0:03:05.1]} 9... O-O {[%clk
0:03:12.4]} 10. e3 {[%clk 0:03:06.7]} 10... Ne8 {[%clk 0:03:13.5]} 11. Be2
{[%clk 0:03:07.5]} 11... Nd7 {[%clk 0:03:15.4]} 12. O-O {[%clk 0:03:09]} 12...
Ne5 {[%clk 0:03:17.3]} 13. Nd2 {[%clk 0:03:04.3]} 13... f5 {[%clk 0:03:17.5]}
14. a5 {[%clk 0:03:03.3]} 14... Bd7 {[%clk 0:03:14.9]} 15. Qb3 {[%clk
0:02:54.4]} 15... Rb8 {[%clk 0:03:14.1]} 16. Bg3 {[%clk 0:02:53.9]} 16... b5
{[%clk 0:03:12.6]} 17. axb6 {[%clk 0:02:54]} 17... Rxb6 {[%clk 0:03:14]} 18. Qc2
{[%clk 0:02:54.2]} 18... Qb8 {[%clk 0:03:15.9]} 19. b3 {[%clk 0:02:49.2]} 19...
Nc7 {[%clk 0:03:14.1]} 20. Bxe5 {[%clk 0:02:34.3]} 20... dxe5 {[%clk 0:03:15.2]}
21. Nc4 {[%clk 0:02:20.4]} 21... Rxb3 {[%clk 0:03:11.5]} 22. d6 {[%clk
0:02:21.4]} 22... Ne8 {[%clk 0:02:53.8]} 23. Rxa6 {[%clk 0:02:14.4]} 23... Be6
{[%clk 0:01:53.4]} 24. Na4 {[%clk 0:01:58.4]} 24... Qb4 {[%clk 0:01:07.3]} 25.
Rb6 {[%clk 0:01:55.7]} 25... Qxa4 {[%clk 0:01:01.7]} 26. Rxb3 {[%clk 0:01:34.9]}
26... Nxd6 {[%clk 0:01:01]} 27. Rc3 {[%clk 0:01:36.3]} 27... Qxc2 {[%clk
0:00:58.5]} 28. Rxc2 {[%clk 0:01:38.2]} 28... Nf7 {[%clk 0:00:31.3]} 29. Na5
{[%clk 0:01:34.2]} 29... Rc8 {[%clk 0:00:31.1]} 30. Rfc1 {[%clk 0:01:31.8]}
30... Bf8 {[%clk 0:00:25.1]} 31. Nb7 {[%clk 0:01:32.4]} 31... Bd5 {[%clk
0:00:17.4]} 32. Nxc5 {[%clk 0:01:31.3]} 32... Bd6 {[%clk 0:00:16.1]} 33. Na4
{[%clk 0:01:23.3]} 33... Rxc2 {[%clk 0:00:18]} 34. Rxc2 {[%clk 0:01:25.1]} 34...
Bb3 {[%clk 0:00:18.7]} 35. Rc8+ {[%clk 0:01:26.6]} 35... Kg7 {[%clk 0:00:20]}
36. Nb6 {[%clk 0:01:27.9]} 36... Be6 {[%clk 0:00:20]} 37. Rc6 {[%clk 0:01:27.3]}
37... Kf6 {[%clk 0:00:19]} 38. Nc4 {[%clk 0:01:21.5]} 38... Be7 {[%clk
0:00:18.6]} 39. Nb6 {[%clk 0:01:18.5]} 39... Nd6 {[%clk 0:00:16.3]} 40. Rc7
{[%clk 0:00:59.6]} 40... e4 {[%clk 0:00:14.9]} 41. Nd7+ {[%clk 0:00:57.8]} 41...
Bxd7 {[%clk 0:00:15.1]} 42. Rxd7 {[%clk 0:00:59.7]} 42... Nf7 {[%clk 0:00:14]}
43. Ra7 {[%clk 0:00:58.8]} 43... h5 {[%clk 0:00:14.5]} 44. Bc4 {[%clk
0:00:57.2]} 44... Nd6 {[%clk 0:00:15.4]} 45. Bb3 {[%clk 0:00:56.6]} 45... Nb5
{[%clk 0:00:16.6]} 46. Ra6+ {[%clk 0:00:52.8]} 46... Nd6 {[%clk 0:00:17.9]} 47.
h4 {[%clk 0:00:49.1]} 47... Ke5 {[%clk 0:00:19]} 48. g3 {[%clk 0:00:49.5]} 48...
Kf6 {[%clk 0:00:20.4]} 49. Kf1 {[%clk 0:00:51]} 49... Ke5 {[%clk 0:00:21.8]} 50.
Ke2 {[%clk 0:00:46.2]} 50... Bf8 {[%clk 0:00:23.3]} 51. Ra8 {[%clk 0:00:33.6]}
51... Be7 {[%clk 0:00:24.4]} 52. Bg8 {[%clk 0:00:33.5]} 52... Kf6 {[%clk
0:00:23.9]} 53. Bd5 {[%clk 0:00:32.7]} 53... Ke5 {[%clk 0:00:24.6]} 54. Bc6
{[%clk 0:00:34.4]} 54... Kf6 {[%clk 0:00:23.8]} 55. Rg8 {[%clk 0:00:33.3]} 55...
Kf7 {[%clk 0:00:22.9]} 56. Bd5+ {[%clk 0:00:34.7]} 56... Kf6 {[%clk 0:00:24.4]}
57. Kd2 {[%clk 0:00:34]} 57... Ke5 {[%clk 0:00:25.7]} 58. Bb3 {[%clk 0:00:33.4]}
58... Kf6 {[%clk 0:00:27.6]} 59. Kc3 {[%clk 0:00:33.4]} 59... Nb5+ {[%clk
0:00:26.8]} 60. Kc4 {[%clk 0:00:34.2]} 60... Nd6+ {[%clk 0:00:18]} 61. Kd5
{[%clk 0:00:35.5]} 61... Nb5 {[%clk 0:00:19.5]} 62. Kc6 {[%clk 0:00:36]} 62...
Nc3 {[%clk 0:00:16.3]} 63. Kd7 {[%clk 0:00:36.7]} 63... Nb5 {[%clk 0:00:13.9]}
64. Rh8 {[%clk 0:00:32.8]} 64... Ba3 {[%clk 0:00:02.9]} 65. Rh7 {[%clk
0:00:31.1]} 65... Nd6 {[%clk 0:00:02.3]} 66. Re7 {[%clk 0:00:32.5]} 66... Bb4
{[%clk 0:00:03]} 67. Re6+ {[%clk 0:00:33.6]} 67... Kg7 {[%clk 0:00:04.4]} 68.
Rxd6 {[%clk 0:00:35.5]} 68... Bxd6 {[%clk 0:00:05.8]} 69. Kxd6 {[%clk
0:00:36.3]} 69... Kf6 {[%clk 0:00:07.7]} 70. Bd1 {[%clk 0:00:32.9]} 70... Kg7
{[%clk 0:00:08.5]} 71. Ke6 {[%clk 0:00:33.9]} 71... Kg8 {[%clk 0:00:09]} 72.
Bxh5 {[%clk 0:00:32.4]} 72... Kh7 {[%clk 0:00:10.9]} 73. Kf6 {[%clk 0:00:31.9]}
73... gxh5 {[%clk 0:00:11.8]} 74. Kxf5 {[%clk 0:00:33.8]} 74... Kh6 {[%clk
0:00:13.5]} 75. Kxe4 {[%clk 0:00:35.7]} 75... Kg6 {[%clk 0:00:15.4]} 76. Kf4
{[%clk 0:00:37.6]} 76... Kf6 {[%clk 0:00:16.7]} 77. e4 {[%clk 0:00:39.5]} 77...
Kg6 {[%clk 0:00:18.6]} 78. e5 {[%clk 0:00:41.4]} 78... Kf7 {[%clk 0:00:19.9]}
79. Ke4 {[%clk 0:00:43.3]} 79... Ke6 {[%clk 0:00:21.8]} 80. f4 {[%clk
0:00:45.2]} 80... Ke7 {[%clk 0:00:22.7]} 81. f5 {[%clk 0:00:47.1]} 81... Kf7
{[%clk 0:00:24.6]} 82. Kf4 {[%clk 0:00:48.4]} 82... Kg7 {[%clk 0:00:26.5]} 83.
Kg5 {[%clk 0:00:50.3]} 83... Kh7 {[%clk 0:00:27.6]} 84. e6 {[%clk 0:00:51.2]}
84... Kg7 {[%clk 0:00:29]} 85. f6+ {[%clk 0:00:53.1]} 85... Kh7 {[%clk
0:00:30.9]} 86. e7 {[%clk 0:00:53.8]} 86... Kg8 {[%clk 0:00:31.5]} 87. e8=Q+
{[%clk 0:00:55.1]} 87... Kh7 {[%clk 0:00:33.4]} 88. Qg6+ {[%clk 0:00:56.2]}
88... Kh8 {[%clk 0:00:34.6]} 89. Qg7# {[%clk 0:00:58.1]} 1-0

[Event "*** Titled Tuesday Blitz"]
[Site "Chess.com"]
[Date "2020.02.04"]
[Round "2"]
[White "iturrizaga"]
[Black "dmosesov"]
[Result "1/2-1/2"]
[WhiteElo "2867"]
[BlackElo "2585"]
[TimeControl "180+2"]
[EndTime "13:27:31 PST"]
[Termination "Game drawn by repetition"]

1. c4 {[%clk 0:03:01.9]} 1... e6 {[%clk 0:02:53.9]} 2. g3 {[%clk 0:02:59.7]}
2... d5 {[%clk 0:02:49.9]} 3. Bg2 {[%clk 0:03:01.6]} 3... Nf6 {[%clk 0:02:50.4]}
4. d4 {[%clk 0:03:02.1]} 4... Bb4+ {[%clk 0:02:41.5]} 5. Bd2 {[%clk 0:03:03.5]}
5... Be7 {[%clk 0:02:42.6]} 6. Nf3 {[%clk 0:03:04.2]} 6... O-O {[%clk 0:02:44]}
7. O-O {[%clk 0:03:04.8]} 7... c6 {[%clk 0:02:45.5]} 8. Bc3 {[%clk 0:03:04.4]}
8... Ne4 {[%clk 0:02:45.2]} 9. Nbd2 {[%clk 0:02:56.8]} 9... f5 {[%clk
0:02:39.2]} 10. Ne5 {[%clk 0:02:52]} 10... Nd7 {[%clk 0:02:37.9]} 11. Nd3 {[%clk
0:02:52.9]} 11... Ndf6 {[%clk 0:02:36.7]} 12. Qb3 {[%clk 0:02:49]} 12... a5
{[%clk 0:02:24.6]} 13. a4 {[%clk 0:02:42.8]} 13... b6 {[%clk 0:02:23.9]} 14. Ne5
{[%clk 0:02:40.3]} 14... Qc7 {[%clk 0:02:19.5]} 15. Ndf3 {[%clk 0:02:26.6]}
15... Ba6 {[%clk 0:02:15.2]} 16. Rac1 {[%clk 0:02:26.8]} 16... Rac8 {[%clk
0:02:05.9]} 17. Rfd1 {[%clk 0:02:23.3]} 17... Qb7 {[%clk 0:02:03.8]} 18. Be1
{[%clk 0:02:20.5]} 18... Nd6 {[%clk 0:02:02.5]} 19. Ng5 {[%clk 0:02:07.1]} 19...
Nxc4 {[%clk 0:01:54.3]} 20. Nxe6 {[%clk 0:01:59.4]} 20... Rfe8 {[%clk
0:01:55.5]} 21. Nxc4 {[%clk 0:01:15.7]} 21... Bxc4 {[%clk 0:01:57.3]} 22. Rxc4
{[%clk 0:01:16.7]} 22... dxc4 {[%clk 0:01:58.1]} 23. Qxc4 {[%clk 0:01:18.6]}
23... Nd5 {[%clk 0:01:45.6]} 24. Rc1 {[%clk 0:01:14.4]} 24... Bf6 {[%clk
0:01:36.3]} 25. Nf4 {[%clk 0:01:01.4]} 25... Kh8 {[%clk 0:01:37.5]} 26. e3
{[%clk 0:00:53.6]} 26... Qd7 {[%clk 0:01:29.5]} 27. Nd3 {[%clk 0:00:47.8]} 27...
Qd6 {[%clk 0:01:20.1]} 28. Bd2 {[%clk 0:00:46.7]} 28... g6 {[%clk 0:01:19.3]}
29. h4 {[%clk 0:00:32.3]} 29... Kg7 {[%clk 0:01:19.6]} 30. b3 {[%clk 0:00:30.1]}
30... Red8 {[%clk 0:00:47.7]} 31. Qa6 {[%clk 0:00:25.1]} 31... Qd7 {[%clk
0:00:44.8]} 32. Rc2 {[%clk 0:00:24.6]} 32... Ra8 {[%clk 0:00:43.8]} 33. Qc4
{[%clk 0:00:25.3]} 33... Rac8 {[%clk 0:00:45.3]} 34. Ne5 {[%clk 0:00:20.5]}
34... Bxe5 {[%clk 0:00:33.8]} 35. dxe5 {[%clk 0:00:22.4]} 35... Qe6 {[%clk
0:00:35.4]} 36. f4 {[%clk 0:00:22.8]} 36... Kf7 {[%clk 0:00:35]} 37. Kf2 {[%clk
0:00:19.3]} 37... Ne7 {[%clk 0:00:26.7]} 38. Bf1 {[%clk 0:00:18.7]} 38... Qxc4
{[%clk 0:00:15.5]} 39. Bxc4+ {[%clk 0:00:20.6]} 39... Nd5 {[%clk 0:00:17.4]} 40.
Kf3 {[%clk 0:00:22]} 40... Ke7 {[%clk 0:00:18.9]} 41. e4 {[%clk 0:00:23.2]}
41... fxe4+ {[%clk 0:00:19.3]} 42. Kxe4 {[%clk 0:00:25.1]} 42... b5 {[%clk
0:00:18.5]} 43. Bd3 {[%clk 0:00:22.6]} 43... bxa4 {[%clk 0:00:18.5]} 44. bxa4
{[%clk 0:00:24.5]} 44... Nb4 {[%clk 0:00:19.7]} 45. Bxb4+ {[%clk 0:00:23.1]}
45... axb4 {[%clk 0:00:21.5]} 46. Rc5 {[%clk 0:00:22.2]} 46... Rd5 {[%clk
0:00:22.7]} 47. Rc4 {[%clk 0:00:13.7]} 47... Rb8 {[%clk 0:00:19.9]} 48. Rxc6
{[%clk 0:00:13.3]} 48... Rd7 {[%clk 0:00:20.9]} 49. Bb5 {[%clk 0:00:14.1]} 49...
b3 {[%clk 0:00:21.8]} 50. Rc3 {[%clk 0:00:15.6]} 50... b2 {[%clk 0:00:14.8]} 51.
Rb3 {[%clk 0:00:16.8]} 51... Rd2 {[%clk 0:00:16.1]} 52. g4 {[%clk 0:00:18.1]}
52... Rc8 {[%clk 0:00:15.6]} 53. Ke3 {[%clk 0:00:17.9]} 53... Rg2 {[%clk
0:00:13.8]} 54. Be2 {[%clk 0:00:18.9]} 54... Rc2 {[%clk 0:00:13.6]} 55. Bf3
{[%clk 0:00:19.3]} 55... Rg3 {[%clk 0:00:12.2]} 56. Rb7+ {[%clk 0:00:19.6]}
56... Kd8 {[%clk 0:00:12.5]} 57. e6 {[%clk 0:00:18]} 57... Rc3+ {[%clk
0:00:11.1]} 58. Ke4 {[%clk 0:00:17.8]} 58... Rgxf3 {[%clk 0:00:12.7]} 59. Rxb2
{[%clk 0:00:18.1]} 59... Rfe3+ {[%clk 0:00:14]} 60. Kd4 {[%clk 0:00:19.3]} 60...
Rcd3+ {[%clk 0:00:15.8]} 61. Kc4 {[%clk 0:00:20.6]} 61... Ra3 {[%clk 0:00:16.3]}
62. f5 {[%clk 0:00:20.6]} 62... gxf5 {[%clk 0:00:14.4]} 63. gxf5 {[%clk
0:00:21.2]} 63... Rxa4+ {[%clk 0:00:16.3]} 64. Kd5 {[%clk 0:00:21.5]} 64... Rf4
{[%clk 0:00:18.2]} 65. Rb8+ {[%clk 0:00:21.1]} 65... Ke7 {[%clk 0:00:13.6]} 66.
Rb7+ {[%clk 0:00:22.3]} 66... Ke8 {[%clk 0:00:15]} 67. Rf7 {[%clk 0:00:23.1]}
67... Rf1 {[%clk 0:00:10.7]} 68. Kd4 {[%clk 0:00:19.5]} 68... Re2 {[%clk
0:00:09.7]} 69. h5 {[%clk 0:00:15.6]} 69... h6 {[%clk 0:00:09.6]} 70. Rf6 {[%clk
0:00:15.5]} 70... Ke7 {[%clk 0:00:09.7]} 71. Rf7+ {[%clk 0:00:16.9]} 71... Ke8
{[%clk 0:00:10.8]} 72. Rf6 {[%clk 0:00:17.9]} 72... Rd1+ {[%clk 0:00:10.9]} 73.
Kc3 {[%clk 0:00:19]} 73... Rf1 {[%clk 0:00:11.6]} 74. Kd4 {[%clk 0:00:19.4]}
1/2-1/2

[Event "*** Titled Tuesday Blitz"]
[Site "Chess.com"]
[Date "2020.02.04"]
[Round "2"]
[White "RitvarsReimanis"]
[Black "Msb2"]
[Result "1/2-1/2"]
[WhiteElo "2571"]
[BlackElo "2843"]
[TimeControl "180+2"]
[EndTime "13:27:55 PST"]
[Termination "Game drawn - insufficient material"]

1. d4 {[%clk 0:03:01.9]} 1... Nf6 {[%clk 0:02:58.8]} 2. c4 {[%clk 0:03:03.1]}
2... e6 {[%clk 0:03:00.3]} 3. Nf3 {[%clk 0:03:04.4]} 3... d5 {[%clk 0:03:01.6]}
4. Nc3 {[%clk 0:03:05.4]} 4... Bb4 {[%clk 0:03:02.8]} 5. Qc2 {[%clk 0:03:02.6]}
5... dxc4 {[%clk 0:03:02.9]} 6. g3 {[%clk 0:02:54.9]} 6... b5 {[%clk 0:02:55.2]}
7. Bg2 {[%clk 0:02:55.6]} 7... Bb7 {[%clk 0:02:56.8]} 8. O-O {[%clk 0:02:55.4]}
8... a6 {[%clk 0:02:58]} 9. a4 {[%clk 0:02:51.1]} 9... c6 {[%clk 0:02:53.7]} 10.
Ne5 {[%clk 0:02:50.7]} 10... Nd5 {[%clk 0:02:40.7]} 11. Ne4 {[%clk 0:02:35.7]}
11... Nd7 {[%clk 0:02:37.3]} 12. Bd2 {[%clk 0:02:33.1]} 12... Be7 {[%clk
0:02:29.9]} 13. b3 {[%clk 0:02:14.2]} 13... Nxe5 {[%clk 0:02:22.4]} 14. dxe5
{[%clk 0:02:14.6]} 14... cxb3 {[%clk 0:02:23.9]} 15. Qxb3 {[%clk 0:02:15.4]}
15... O-O {[%clk 0:02:25.6]} 16. h4 {[%clk 0:02:07.9]} 16... Qc7 {[%clk
0:02:14.8]} 17. Qb2 {[%clk 0:01:55.9]} 17... b4 {[%clk 0:01:39.2]} 18. Rfc1
{[%clk 0:01:53.2]} 18... c5 {[%clk 0:01:40.5]} 19. Bxb4 {[%clk 0:01:47.1]} 19...
Nxb4 {[%clk 0:01:35.4]} 20. Qxb4 {[%clk 0:01:45.9]} 20... Bd5 {[%clk 0:01:18.8]}
21. Qc3 {[%clk 0:01:35.3]} 21... Rfc8 {[%clk 0:01:14.8]} 22. Rab1 {[%clk
0:01:15.7]} 22... Rab8 {[%clk 0:01:04.4]} 23. Rxb8 {[%clk 0:01:15.5]} 23... Qxb8
{[%clk 0:01:06.3]} 24. Nd2 {[%clk 0:00:56.5]} 24... c4 {[%clk 0:00:54.4]} 25. e4
{[%clk 0:00:56.4]} 25... Bb4 {[%clk 0:00:49.8]} 26. Qc2 {[%clk 0:00:54.5]} 26...
Bxd2 {[%clk 0:00:17.6]} 27. Qxd2 {[%clk 0:00:54.1]} 27... Ba8 {[%clk 0:00:17.2]}
28. Qd4 {[%clk 0:00:45.9]} 28... Qb3 {[%clk 0:00:16.4]} 29. Qd7 {[%clk
0:00:31.9]} 29... Rf8 {[%clk 0:00:15.9]} 30. a5 {[%clk 0:00:24.8]} 30... Qb5
{[%clk 0:00:11.6]} 31. Qc7 {[%clk 0:00:23.9]} 31... Bc6 {[%clk 0:00:12.8]} 32.
Bf1 {[%clk 0:00:20.5]} 32... Bxe4 {[%clk 0:00:12.4]} 33. Bxc4 {[%clk 0:00:20.5]}
33... Qb2 {[%clk 0:00:07.3]} 34. Bf1 {[%clk 0:00:20.1]} 34... h6 {[%clk
0:00:07.4]} 35. Bxa6 {[%clk 0:00:17.7]} 35... Bd5 {[%clk 0:00:04.9]} 36. Bf1
{[%clk 0:00:17.6]} 36... Qb4 {[%clk 0:00:05.8]} 37. Bg2 {[%clk 0:00:15.8]} 37...
Bxg2 {[%clk 0:00:04.8]} 38. Kxg2 {[%clk 0:00:17.7]} 38... Qe4+ {[%clk
0:00:06.4]} 39. Kg1 {[%clk 0:00:19.4]} 39... Ra8 {[%clk 0:00:06.9]} 40. Qc5
{[%clk 0:00:20.1]} 40... g5 {[%clk 0:00:06.8]} 41. hxg5 {[%clk 0:00:20.8]} 41...
hxg5 {[%clk 0:00:08.7]} 42. Rc4 {[%clk 0:00:21.1]} 42... Qe1+ {[%clk 0:00:09.3]}
43. Kg2 {[%clk 0:00:22.7]} 43... Qxa5 {[%clk 0:00:09.6]} 44. Qxa5 {[%clk
0:00:20.6]} 44... Rxa5 {[%clk 0:00:11.5]} 45. Re4 {[%clk 0:00:19.7]} 45... Kg7
{[%clk 0:00:12.1]} 46. Re1 {[%clk 0:00:18.8]} 46... Kg6 {[%clk 0:00:13.2]} 47.
g4 {[%clk 0:00:20.3]} 47... Ra3 {[%clk 0:00:14]} 48. f3 {[%clk 0:00:21.5]} 48...
Kg7 {[%clk 0:00:13.8]} 49. Kg3 {[%clk 0:00:22.8]} 49... Kf8 {[%clk 0:00:15.1]}
50. Re2 {[%clk 0:00:24.3]} 50... Ke7 {[%clk 0:00:16.5]} 51. Rb2 {[%clk
0:00:24.5]} 51... Ra5 {[%clk 0:00:16.7]} 52. Re2 {[%clk 0:00:25.2]} 52... Rd5
{[%clk 0:00:16.8]} 53. Re1 {[%clk 0:00:26.3]} 53... Kd7 {[%clk 0:00:18.3]} 54.
Re2 {[%clk 0:00:28.2]} 54... Kc6 {[%clk 0:00:19.5]} 55. Rc2+ {[%clk 0:00:28.4]}
55... Kd7 {[%clk 0:00:21]} 56. Re2 {[%clk 0:00:29.7]} 56... Rd3 {[%clk
0:00:22.3]} 57. Re1 {[%clk 0:00:29]} 57... Kc6 {[%clk 0:00:23.4]} 58. Rc1+
{[%clk 0:00:27]} 58... Kd7 {[%clk 0:00:20.1]} 59. Re1 {[%clk 0:00:26]} 59... Rd2
{[%clk 0:00:19.8]} 60. Re3 {[%clk 0:00:25.7]} 60... Rd5 {[%clk 0:00:20.6]} 61.
Re1 {[%clk 0:00:26.6]} 61... Kc6 {[%clk 0:00:21.5]} 62. Rc1+ {[%clk 0:00:25.4]}
62... Rc5 {[%clk 0:00:22.5]} 63. Ra1 {[%clk 0:00:09.3]} 63... Rxe5 {[%clk
0:00:20.7]} 64. Ra7 {[%clk 0:00:10.8]} 64... f5 {[%clk 0:00:20.1]} 65. gxf5
{[%clk 0:00:12.2]} 65... exf5 {[%clk 0:00:21.2]} 66. Rg7 {[%clk 0:00:12.1]}
66... Kd6 {[%clk 0:00:07.4]} 67. Rxg5 {[%clk 0:00:12.1]} 67... Ra5 {[%clk
0:00:09.1]} 68. Kf4 {[%clk 0:00:11.1]} 68... Ke6 {[%clk 0:00:09.6]} 69. Rg6+
{[%clk 0:00:12]} 69... Kf7 {[%clk 0:00:11.2]} 70. Rb6 {[%clk 0:00:13.4]} 70...
Rc5 {[%clk 0:00:10.9]} 71. Kg5 {[%clk 0:00:13.9]} 71... Kg7 {[%clk 0:00:10.7]}
72. Rb7+ {[%clk 0:00:14.2]} 72... Kf8 {[%clk 0:00:11.5]} 73. Kf6 {[%clk
0:00:13.5]} 73... Rc6+ {[%clk 0:00:10.8]} 74. Kxf5 {[%clk 0:00:13.9]} 74... Ra6
{[%clk 0:00:12.7]} 75. Kg5 {[%clk 0:00:13]} 75... Rc6 {[%clk 0:00:13.8]} 76. f4
{[%clk 0:00:14.3]} 76... Ra6 {[%clk 0:00:15.1]} 77. f5 {[%clk 0:00:15.8]} 77...
Rc6 {[%clk 0:00:16.5]} 78. Ra7 {[%clk 0:00:16.4]} 78... Rb6 {[%clk 0:00:17.7]}
79. Rh7 {[%clk 0:00:17.9]} 79... Rc6 {[%clk 0:00:19]} 80. Rh6 {[%clk 0:00:19.3]}
80... Rxh6 {[%clk 0:00:19.6]} 81. Kxh6 {[%clk 0:00:21.2]} 81... Kf7 {[%clk
0:00:21.1]} 82. Kg5 {[%clk 0:00:22.6]} 82... Kg7 {[%clk 0:00:22.4]} 83. f6+
{[%clk 0:00:23.8]} 83... Kf7 {[%clk 0:00:23.6]} 84. Kf5 {[%clk 0:00:25.3]} 84...
Kf8 {[%clk 0:00:25]} 85. Ke6 {[%clk 0:00:26.7]} 85... Ke8 {[%clk 0:00:26.4]} 86.
Ke5 {[%clk 0:00:28.1]} 86... Kf7 {[%clk 0:00:26.5]} 87. Kf5 {[%clk 0:00:29.7]}
87... Kf8 {[%clk 0:00:27.3]} 88. Kg6 {[%clk 0:00:31.2]} 88... Kg8 {[%clk
0:00:28.2]} 89. f7+ {[%clk 0:00:32.7]} 89... Kf8 {[%clk 0:00:29.3]} 90. Kg5
{[%clk 0:00:34.1]} 90... Kg7 {[%clk 0:00:29.9]} 91. Kf5 {[%clk 0:00:35.2]} 91...
Kxf7 {[%clk 0:00:29.3]} 1/2-1/2

[Event "*** Titled Tuesday Blitz"]
[Site "Chess.com"]
[Date "2020.02.04"]
[Round "2"]
[White "olksuna"]
[Black "rasmussvane"]
[Result "0-1"]
[WhiteElo "2572"]
[BlackElo "2873"]
[TimeControl "180+2"]
[EndTime "13:28:16 PST"]
[Termination "rasmussvane won on time"]

1. d4 {[%clk 0:03:01.9]} 1... d5 {[%clk 0:03:00.5]} 2. c4 {[%clk 0:03:03]} 2...
e6 {[%clk 0:03:02]} 3. Nc3 {[%clk 0:03:03.7]} 3... a6 {[%clk 0:03:03.5]} 4. cxd5
{[%clk 0:03:01.7]} 4... exd5 {[%clk 0:03:05.4]} 5. Nf3 {[%clk 0:03:03.3]} 5...
Nf6 {[%clk 0:03:06.1]} 6. Bg5 {[%clk 0:03:04.4]} 6... Be6 {[%clk 0:03:07.3]} 7.
e3 {[%clk 0:03:05.5]} 7... Nbd7 {[%clk 0:03:08.2]} 8. Bd3 {[%clk 0:03:06]} 8...
Bd6 {[%clk 0:03:07.8]} 9. O-O {[%clk 0:03:06.9]} 9... c6 {[%clk 0:03:07.5]} 10.
Bf4 {[%clk 0:03:03.1]} 10... Qc7 {[%clk 0:03:08]} 11. Bxd6 {[%clk 0:03:03.6]}
11... Qxd6 {[%clk 0:03:09.9]} 12. h3 {[%clk 0:03:05.1]} 12... O-O {[%clk
0:03:10.7]} 13. Rc1 {[%clk 0:03:05.7]} 13... g6 {[%clk 0:03:11.5]} 14. Re1
{[%clk 0:03:06.2]} 14... Qe7 {[%clk 0:03:08]} 15. Nd2 {[%clk 0:02:59.4]} 15...
Rfd8 {[%clk 0:03:01.3]} 16. Qf3 {[%clk 0:02:59.3]} 16... Nb6 {[%clk 0:02:46.7]}
17. a3 {[%clk 0:02:55.6]} 17... Kg7 {[%clk 0:02:37.5]} 18. Qf4 {[%clk 0:02:51]}
18... Nc8 {[%clk 0:02:33.7]} 19. Nb3 {[%clk 0:02:39.9]} 19... Nd6 {[%clk
0:02:32.4]} 20. Nc5 {[%clk 0:02:41]} 20... Re8 {[%clk 0:02:32.6]} 21. b4 {[%clk
0:02:30.1]} 21... Bf5 {[%clk 0:02:20]} 22. Bxf5 {[%clk 0:02:23.5]} 22... Nxf5
{[%clk 0:02:21.9]} 23. Nd3 {[%clk 0:02:24.8]} 23... Nd6 {[%clk 0:02:20.9]} 24.
Ne5 {[%clk 0:02:17.3]} 24... Nd7 {[%clk 0:02:06.6]} 25. Nxd7 {[%clk 0:01:54.7]}
25... Qxd7 {[%clk 0:02:08.5]} 26. a4 {[%clk 0:01:56.2]} 26... Nc4 {[%clk
0:02:02.1]} 27. e4 {[%clk 0:01:30.3]} 27... dxe4 {[%clk 0:01:54.3]} 28. Nxe4
{[%clk 0:01:25.7]} 28... Qxd4 {[%clk 0:01:38.5]} 29. Rcd1 {[%clk 0:01:21.4]}
29... Qe5 {[%clk 0:01:28.1]} 30. Qh4 {[%clk 0:00:54.5]} 30... b5 {[%clk
0:00:37.8]} 31. Ng5 {[%clk 0:00:41.5]} 31... Qxe1+ {[%clk 0:00:35.8]} 32. Rxe1
{[%clk 0:00:43.1]} 32... Rxe1+ {[%clk 0:00:36.7]} 33. Kh2 {[%clk 0:00:44.6]}
33... h6 {[%clk 0:00:22.9]} 34. Qd4+ {[%clk 0:00:41]} 34... Kg8 {[%clk
0:00:11.2]} 35. Ne4 {[%clk 0:00:33.9]} 35... Rxe4 {[%clk 0:00:07.2]} 36. Qxe4
{[%clk 0:00:34.6]} 36... Rc8 {[%clk 0:00:08.7]} 37. a5 {[%clk 0:00:31.8]} 37...
Kf8 {[%clk 0:00:08.1]} 38. Qd4 {[%clk 0:00:31.1]} 38... Ke7 {[%clk 0:00:03.9]}
39. Qa7+ {[%clk 0:00:30]} 39... Ke6 {[%clk 0:00:05.1]} 40. Qxa6 {[%clk
0:00:30.7]} 40... Rc7 {[%clk 0:00:05]} 41. Qa8 {[%clk 0:00:30.4]} 41... Kd7
{[%clk 0:00:06.4]} 42. a6 {[%clk 0:00:29.9]} 42... Nd6 {[%clk 0:00:06.9]} 43.
Qf8 {[%clk 0:00:24.2]} 43... h5 {[%clk 0:00:07.8]} 44. h4 {[%clk 0:00:24.2]}
44... Ra7 {[%clk 0:00:09]} 45. Qg7 {[%clk 0:00:14.1]} 45... Rxa6 {[%clk
0:00:10.1]} 46. Qd4 {[%clk 0:00:15.7]} 46... Ra2 {[%clk 0:00:11]} 47. f3 {[%clk
0:00:15.5]} 47... Rc2 {[%clk 0:00:11.9]} 48. Qa7+ {[%clk 0:00:16.3]} 48... Ke6
{[%clk 0:00:13.2]} 49. Qe3+ {[%clk 0:00:17.2]} 49... Kd7 {[%clk 0:00:14.5]} 50.
Kh3 {[%clk 0:00:16.7]} 50... Rc4 {[%clk 0:00:15.3]} 51. Qd2 {[%clk 0:00:17.1]}
51... Ke6 {[%clk 0:00:15.5]} 52. g4 {[%clk 0:00:18.3]} 52... hxg4+ {[%clk
0:00:10.4]} 53. fxg4 {[%clk 0:00:16.9]} 53... f5 {[%clk 0:00:12.3]} 54. g5
{[%clk 0:00:10.6]} 54... Re4 {[%clk 0:00:09.3]} 55. h5 {[%clk 0:00:10.5]} 55...
gxh5 {[%clk 0:00:10.2]} 56. g6 {[%clk 0:00:11.9]} 56... Rg4 {[%clk 0:00:11.4]}
57. Qh6 {[%clk 0:00:12.2]} 57... Ne4 {[%clk 0:00:08.3]} 58. g7+ {[%clk
0:00:11.7]} 58... Nf6 {[%clk 0:00:09.5]} 59. Qe3+ {[%clk 0:00:09.7]} 59... Kf7
{[%clk 0:00:09.5]} 60. Qc5 {[%clk 0:00:10.3]} 60... Kxg7 {[%clk 0:00:08.5]} 61.
Qxc6 {[%clk 0:00:11.6]} 61... Rxb4 {[%clk 0:00:08.2]} 62. Qc7+ {[%clk
0:00:12.8]} 62... Kg6 {[%clk 0:00:09]} 63. Qg3+ {[%clk 0:00:12.6]} 63... Rg4
{[%clk 0:00:09.9]} 64. Qb8 {[%clk 0:00:13.1]} 64... b4 {[%clk 0:00:10.6]} 65.
Qb7 {[%clk 0:00:13.9]} 65... Re4 {[%clk 0:00:11.3]} 66. Qb6 {[%clk 0:00:13.5]}
66... Kg5 {[%clk 0:00:11.7]} 67. Qg1+ {[%clk 0:00:13]} 67... Ng4 {[%clk
0:00:12.5]} 68. Qc1+ {[%clk 0:00:13.6]} 68... Re3+ {[%clk 0:00:13.2]} 69. Kg2
{[%clk 0:00:13.9]} 69... h4 {[%clk 0:00:13.7]} 70. Qc8 {[%clk 0:00:13.2]} 70...
h3+ {[%clk 0:00:14.6]} 71. Kf1 {[%clk 0:00:12]} 71... h2 {[%clk 0:00:15.4]} 72.
Qg8+ {[%clk 0:00:12.5]} 72... Kf4 {[%clk 0:00:16.5]} 73. Qb8+ {[%clk 0:00:13]}
73... Kg5 {[%clk 0:00:12.8]} 74. Qg8+ {[%clk 0:00:13.6]} 74... Kf4 {[%clk
0:00:11.8]} 75. Qb8+ {[%clk 0:00:14.2]} 75... Re5 {[%clk 0:00:10.8]} 76. Kg2
{[%clk 0:00:13.3]} 76... b3 {[%clk 0:00:07.3]} 77. Qd6 {[%clk 0:00:08.2]} 77...
b2 {[%clk 0:00:07.7]} 78. Qd2+ {[%clk 0:00:07.4]} 78... Re3 {[%clk 0:00:08.9]}
79. Qxb2 {[%clk 0:00:07.5]} 79... Rg3+ {[%clk 0:00:09.7]} 0-1